fUST/lending_fUST_20251004
["ID","MTS","AMOUNT","RATE_DAILY","PERIOD"]
[389144871,1759590678983,-564.32,0.00020821,2]
[389144872,1759590678993,-185.947866,0.00020821,2]
[389144873,1759590679002,-185.947866,0.00020821,2]
[389144874,1759590679014,-185.947866,0.00020821,2]
[389144875,1759590679023,-500.0,0.00020821,2]
[389144876,1759590679033,-2830.57,0.00020821,2]
[389144877,1759590679042,-500.0,0.00020821,2]
[389144878,1759590679051,-500.0,0.00020821,2]
[389144879,1759590679061,-151.0,0.00020821,2]
[389144880,1759590679070,-500.0,0.00020821,2]
[389144881,1759590679079,-295.42193492,0.00020821,2]
[389144882,1759590679089,-151.0,0.00020821,2]
[389144883,1759590679098,-500.0,0.00020821,2]
[389144884,1759590679110,-500.0,0.00020821,2]
[389144885,1759590679121,-500.0,0.00020821,2]
[389144886,1759590679131,-467.18751227,0.00020821,2]
[389144887,1759590679141,-500.0,0.00020821,2]
[389144888,1759590679151,-500.0,0.00020821,2]
[389144889,1759590679160,-500.0,0.00020821,2]
[389144890,1759590679170,-1054.46,0.00020821,2]
[389144891,1759590679179,-1656.64,0.00020821,2]
[389144892,1759590679189,-151.0,0.00020821,2]
[389144893,1759590679199,-500.0,0.00020821,2]
[389144894,1759590679209,-151.0,0.00020821,2]
[389144895,1759590679219,-500.0,0.00020821,2]
[389144896,1759590679229,-151.0,0.00020821,2]
[389144897,1759590679239,-500.0,0.00020821,2]
[389144898,1759590679251,-500.0,0.00020821,2]
[389144899,1759590679260,-500.0,0.00020821,2]
[389144900,1759590679270,-537.94,0.00020821,2]
[389144901,1759590679280,-202.811457,0.00020821,2]
[389144902,1759590679289,-978.72,0.00020821,2]
[389144903,1759590679299,-500.0,0.00020821,2]
[389144904,1759590679308,-765.99,0.00020821,2]
[389144905,1759590679317,-500.0,0.00020821,2]
[389144906,1759590679327,-958.69,0.00020821,2]
[389144907,1759590679337,-1025.98,0.00020821,2]
[389144908,1759590679347,-562.14,0.00020821,2]
[389144909,1759590679357,-500.0,0.00020821,2]
[389144910,1759590679367,-500.0,0.00020821,2]
[389144911,1759590679377,-533.74,0.00020821,2]
[389144912,1759590679388,-500.0,0.00020821,2]
[389144913,1759590679398,-187.21648807,0.00020821,2]
[389144914,1759590679408,-709.18,0.00020821,2]
[389144915,1759590679418,-375.181838,0.00020821,2]
[389144916,1759590679428,-151.0,0.00020821,2]
[389144917,1759590679438,-555.69,0.00020821,2]
[389144918,1759590679448,-375.181838,0.00020821,2]
[389144919,1759590679457,-500.0,0.00020821,2]
[389144920,1759590679466,-500.0,0.00020821,2]
[389144921,1759590679475,-375.181838,0.00020821,2]
[389144922,1759590679485,-151.0,0.00020821,2]
[389144923,1759590679494,-375.181838,0.00020821,2]
[389144924,1759590679504,-508.88,0.00020821,2]
[389144925,1759590679514,-664.88,0.00020821,2]
[389144926,1759590679523,-500.0,0.00020821,2]
[389144927,1759590679532,-3239.32,0.00020821,2]
[389144928,1759590679542,-668.88,0.00020821,2]
[389144929,1759590679553,-561.44,0.00020821,2]
[389144930,1759590679562,-2075.26,0.00020821,2]
[389144931,1759590679573,-580.84096995,0.00020821,2]
[389144932,1759590679584,-183.99382041,0.00020821,2]
[389144933,1759590679594,-151.0,0.00020821,2]
[389144934,1759590679603,-500.0,0.00020821,2]
[389144935,1759590679612,-500.0,0.00020821,2]
[389144936,1759590679622,-500.0,0.00020821,2]
[389144937,1759590679631,-500.0,0.00020821,2]
[389144938,1759590679641,-500.0,0.00020821,2]
[389144939,1759590679650,-1601.94,0.00020821,2]
[389144940,1759590679660,-500.0,0.00020821,2]
[389144941,1759590679670,-706.43,0.00020821,2]
[389144942,1759590679680,-500.0,0.00020821,2]
[389144943,1759590679689,-500.0,0.00020821,2]
[389144944,1759590679699,-529.06,0.00020821,2]
[389144945,1759590679708,-322.89293119,0.00020821,2]
[389144946,1759590679720,-748.01,0.00020821,2]
[389144947,1759590679731,-500.0,0.00020821,2]
[389144948,1759590679741,-151.0,0.00020821,2]
[389144949,1759590679752,-805.25,0.00020821,2]
[389144950,1759590679763,-877.35,0.00020821,2]
[389144951,1759590679773,-810.89,0.00020821,2]
[389144952,1759590679783,-840.23,0.00020821,2]
[389144953,1759590679792,-592.3338692,0.00020821,2]
[389144954,1759590679802,-500.0,0.00020821,2]
[389144955,1759590679812,-500.0,0.00020821,2]
[389144956,1759590679821,-842.15,0.00020821,2]
[389144957,1759590679831,-2848.24,0.00020821,2]
[389144958,1759590679841,-966.97,0.00020821,2]
[389144959,1759590679850,-500.0,0.00020821,2]
[389144960,1759590679860,-1140.91,0.00020821,2]
[389144961,1759590679870,-500.0,0.00020821,2]
[389144962,1759590679879,-1360.8,0.00020821,2]
[389144963,1759590679892,-609.28,0.00020821,2]
[389144964,1759590679903,-500.0,0.00020821,2]
[389144965,1759590679913,-500.0,0.00020821,2]
[389144966,1759590679924,-500.0,0.00020821,2]
[389144967,1759590679934,-500.0,0.00020821,2]
[389144968,1759590679943,-500.0,0.00020821,2]
[389144969,1759590679953,-500.0,0.00020821,2]
[389144970,1759590679963,-645.8,0.00020821,2]
[389144971,1759590679972,-500.0,0.00020821,2]
[389144972,1759590679982,-165.579866,0.00020821,2]
[389144973,1759590679992,-165.579866,0.00020821,2]
[389144974,1759590680001,-977.77,0.00020821,2]
[389144975,1759590680011,-958.93,0.00020821,2]
[389144976,1759590680020,-151.0,0.00020821,2]
[389144977,1759590680029,-165.579866,0.00020821,2]
[389144978,1759590680038,-151.0,0.00020821,2]
[389144979,1759590680050,-165.579874,0.00020821,2]
[389144980,1759590680059,-500.0,0.00020821,2]
[389144981,1759590680068,-500.0,0.00020821,2]
[389144982,1759590680077,-1323.11,0.00020821,2]
[389144983,1759590680086,-500.0,0.00020821,2]
[389144984,1759590680096,-500.0,0.00020821,2]
[389144985,1759590680105,-500.0,0.00020821,2]
[389144986,1759590680114,-1856.22,0.00020821,2]
[389144987,1759590680123,-1749.05,0.00020821,2]
[389144988,1759590680135,-768.13,0.00020821,2]
[389144989,1759590680144,-500.0,0.00020821,2]
[389144990,1759590680153,-170.871397,0.00020821,2]
[389144991,1759590680163,-170.871397,0.00020821,2]
[389144992,1759590680172,-170.871397,0.00020821,2]
[389144993,1759590680182,-170.871392,0.00020821,2]
[389144994,1759590680191,-500.0,0.00020821,2]
[389144995,1759590680200,-151.0,0.00020821,2]
[389144996,1759590680210,-500.0,0.00020821,2]
[389144997,1759590680219,-151.0,0.00020821,2]
[389144998,1759590680228,-732.2,0.00020821,2]
[389144999,1759590680237,-1738.11,0.00020821,2]
[389145000,1759590680246,-151.0,0.00020821,2]
[389145001,1759590680256,-472.06328718,0.00020821,2]
[389145002,1759590680265,-500.0,0.00020821,2]
[389145003,1759590680274,-500.0,0.00020821,2]
[389145004,1759590680283,-3015.62,0.00020821,2]
[389145005,1759590680293,-1097.18,0.00020821,2]
[389145006,1759590680302,-1095.04,0.00020821,2]
[389145007,1759590680311,-500.0,0.00020821,2]
[389145008,1759590680321,-3353.07,0.00020821,2]
[389145009,1759590680330,-500.0,0.00020821,2]
[389145010,1759590680339,-500.0,0.00020821,2]
[389145011,1759590680349,-500.0,0.00020821,2]
[389145012,1759590680358,-500.0,0.00020821,2]
[389145013,1759590680367,-500.0,0.00020821,2]
[389145014,1759590680377,-979.87,0.00020821,2]
[389145015,1759590680387,-500.0,0.00020821,2]
[389145016,1759590680397,-556.58,0.00020821,2]
[389145017,1759590680406,-602.05,0.00020821,2]
[389145018,1759590680416,-669.17,0.00020821,2]
[389145019,1759590680426,-2444.68,0.00020821,2]
[389145020,1759590680435,-700.63,0.00020821,2]
[389145021,1759590680444,-500.0,0.00020821,2]
[389145022,1759590680454,-1487.34,0.00020821,2]
[389145023,1759590680463,-501.72,0.00020821,2]
[389145024,1759590680473,-809.98,0.00020821,2]
[389145025,1759590680482,-3003.58,0.00020821,2]
[389145026,1759590680492,-4041.89,0.00020821,2]
[389145027,1759590680502,-500.0,0.00020821,2]
[389145028,1759590680511,-500.0,0.00020821,2]
[389145029,1759590680521,-500.0,0.00020821,2]
[389145030,1759590680531,-500.0,0.00020821,2]
[389145031,1759590680541,-1598.11,0.00020821,2]
[389145032,1759590680550,-500.0,0.00020821,2]
[389145033,1759590680560,-1068.6,0.00020821,2]
[389145034,1759590680569,-542.75,0.00020821,2]
[389145035,1759590680579,-588.7,0.00020821,2]
[389145036,1759590680588,-314.39204716,0.00020821,2]
[389145037,1759590680598,-500.0,0.00020821,2]
[389145038,1759590680607,-2368.12,0.00020821,2]
[389145039,1759590680616,-548.65,0.00020821,2]
[389145040,1759590680625,-1054.69,0.00020821,2]
[389145041,1759590680635,-500.0,0.00020821,2]
[389145042,1759590680645,-1050.17,0.00020821,2]
[389145043,1759590680655,-786.24,0.00020821,2]
[389145044,1759590680664,-1829.47,0.00020821,2]
[389145045,1759590680674,-791.1,0.00020821,2]
[389145046,1759590680684,-500.0,0.00020821,2]
[389145047,1759590680693,-647.62,0.00020821,2]
[389145048,1759590680703,-500.0,0.00020821,2]
[389145049,1759590680712,-500.0,0.00020821,2]
[389145050,1759590680722,-500.0,0.00020821,2]
[389145051,1759590680732,-1868.16,0.00020821,2]
[389145052,1759590680741,-947.44,0.00020821,2]
[389145053,1759590680751,-1195.72,0.00020821,2]
[389145054,1759590680760,-3023.99,0.00020821,2]
[389145055,1759590680769,-594.18,0.00020821,2]
[389145056,1759590680778,-1450.46,0.00020821,2]
[389145057,1759590680788,-500.0,0.00020821,2]
[389145058,1759590680797,-500.0,0.00020821,2]
[389145059,1759590680807,-500.0,0.00020821,2]
[389145060,1759590680817,-383.90824488,0.00020821,2]
[389145061,1759590680827,-1341.41,0.00020821,2]
[389145062,1759590680836,-503.24,0.00020821,2]
[389145063,1759590680845,-2415.19,0.00020821,2]
[389145064,1759590680970,-4325.59,0.00020821,2]
[389145065,1759590680980,-2117.6,0.00020821,2]
[389145066,1759590680990,-616.75,0.00020821,2]
[389145067,1759590681000,-500.0,0.00020821,2]
[389145068,1759590681010,-894.18,0.00020821,2]
[389145069,1759590681020,-646.89,0.00020821,2]
[389145070,1759590681029,-6808.25,0.00020821,2]
[389145071,1759590681038,-1219.82,0.00020821,2]
[389145072,1759590681049,-766.0,0.00020821,2]
[389145073,1759590681060,-576.19,0.00020821,2]
[389145074,1759590681071,-501.11,0.00020821,2]
[389145075,1759590681083,-500.0,0.00020821,2]
[389145076,1759590681092,-838.57,0.00020821,2]
[389145077,1759590681102,-1612.24,0.00020821,2]
[389145078,1759590681111,-500.0,0.00020821,2]
[389145079,1759590681120,-195.97841364,0.00020821,2]
[389145080,1759590681131,-500.0,0.00020821,2]
[389145081,1759590681144,-1409.27,0.00020821,2]
[389145082,1759590681154,-990.0,0.00020821,2]
[389145083,1759590681165,-500.0,0.00020821,2]
[389145084,1759590681175,-923.15,0.00020821,2]
[389145085,1759590681185,-1345.42,0.00020821,2]
[389145086,1759590681195,-1493.73,0.00020821,2]
[389145087,1759590681205,-500.0,0.00020821,2]
[389145088,1759590681215,-542.59,0.00020821,2]
[389145089,1759590681226,-1082.9,0.00020821,2]
[389145090,1759590681236,-1072.6,0.00020821,2]
[389145091,1759590681246,-1043.25,0.00020821,2]
[389145092,1759590681256,-500.0,0.00020821,2]
[389145093,1759590681266,-1131.17,0.00020821,2]
[389145094,1759590681276,-2361.16,0.00020821,2]
[389145095,1759590681285,-500.0,0.00020821,2]
[389145096,1759590681295,-5225.58,0.00020821,2]
[389145097,1759590681305,-500.0,0.00020821,2]
[389145098,1759590681315,-500.0,0.00020821,2]
[389145099,1759590681325,-1448.44,0.00020821,2]
[389145100,1759590681335,-511.73,0.00020821,2]
[389145101,1759590681344,-500.0,0.00020821,2]
[389145102,1759590681354,-632.45,0.00020821,2]
[389145103,1759590681363,-606.37,0.00020821,2]
[389145104,1759590681372,-500.0,0.00020821,2]
[389145105,1759590681382,-647.03,0.00020821,2]
[389145106,1759590681393,-1452.17,0.00020821,2]
[389145107,1759590681404,-500.0,0.00020821,2]
[389145108,1759590681413,-6915.55,0.00020821,2]
[389145109,1759590681424,-500.0,0.00020821,2]
[389145110,1759590681434,-500.0,0.00020821,2]
[389145111,1759590681443,-2266.98,0.00020821,2]
[389145112,1759590681452,-3328.29,0.00020821,2]
[389145113,1759590681462,-500.0,0.00020821,2]
[389145114,1759590681471,-1023.24,0.00020821,2]
[389145115,1759590681481,-500.0,0.00020821,2]
[389145116,1759590681489,-1262.25,0.00020821,2]
[389145117,1759590681500,-6120.99,0.00020821,2]
[389145118,1759590681509,-3854.46,0.00020821,2]
[389145119,1759590681519,-632.01,0.00020821,2]
[389145120,1759590681529,-153.41722808,0.00020821,2]
[389145121,1759590681539,-500.0,0.00020821,2]
[389145122,1759590681548,-500.0,0.00020821,2]
[389145123,1759590681558,-366.32519952,0.00020821,2]
[389145124,1759590681568,-500.0,0.00020821,2]
[389145125,1759590681577,-1031.38,0.00020821,2]
[389145126,1759590681587,-1428.16,0.00020821,2]
[389145127,1759590681596,-1606.82,0.00020821,2]
[389145128,1759590681606,-500.0,0.00020821,2]
[389145129,1759590681616,-917.5,0.00020821,2]
[389145130,1759590681625,-551.75,0.00020821,2]
[389145131,1759590681634,-4600.4,0.00020821,2]
[389145132,1759590681644,-821.33,0.00020821,2]
[389145133,1759590681654,-500.0,0.00020822,2]
[389145134,1759590681663,-247.72405421,0.00020822,2]
[389145135,1759590681672,-346.9610652,0.00020822,2]
[389145136,1759590681682,-198.78175095,0.00020822,2]
[389145137,1759590681691,-500.0,0.00020822,2]
[389145138,1759590681701,-151.0,0.00020822,2]
[389145139,1759590681710,-151.0,0.00020822,2]
[389145140,1759590681720,-151.0,0.00020822,2]
[389145141,1759590681729,-498.81057376,0.00020822,2]
[389145142,1759590681740,-151.0,0.00020822,2]
[389145143,1759590681749,-500.0,0.00020822,2]
[389145144,1759590681758,-535.44778959,0.00020822,2]
[389145145,1759590681768,-500.0,0.00020822,2]
[389145146,1759590681777,-500.0,0.00020822,2]
[389145147,1759590681788,-151.0,0.00020822,2]
[389145148,1759590681797,-1556.0,0.00020822,2]
[389145149,1759590681807,-1556.0,0.00020822,2]
[389145150,1759590681816,-151.0,0.00020822,2]
[389145151,1759590681825,-151.0,0.00020822,2]
[389145152,1759590681834,-151.0,0.00020822,2]
[389145153,1759590681844,-151.0,0.00020822,2]
[389145154,1759590681854,-188.171782,0.00020822,2]
[389145155,1759590681864,-188.171782,0.00020822,2]
[389145156,1759590681873,-188.171782,0.00020822,2]
[389145157,1759590681882,-188.171788,0.00020822,2]
[389145158,1759590681891,-151.0,0.00020822,2]
[389145159,1759590681901,-151.0,0.00020822,2]
[389145160,1759590681911,-168.0,0.00020828,2]
[389145161,1759590681921,-174.0,0.00020842,2]
[389145162,1759590681930,-1500.0,0.00020868,2]
[389145163,1759590681939,-168.0,0.00020914,2]
[389145164,1759590681949,-174.0,0.00020947,2]
[389145165,1759590681958,-155.805852,0.00020961,2]
[389145166,1759590681968,-291.3763659,0.00020964,2]
[389145167,1759590681977,-500.0,0.00020997,2]
[389145168,1759590681986,-280.4,0.00021,2]
[389145169,1759590681995,-174.0,0.00021008,2]
[389145170,1759590682005,-500.0,0.00021029,2]
[389145171,1759590682014,-174.0,0.0002105,2]
[389145172,1759590682024,-152.32967578,0.00021062,2]
[389145173,1759590682033,-161.39146309,0.00021062,2]
[389145174,1759590682043,-2500.0,0.00021064,2]
[389145175,1759590682053,-2500.0,0.00021064,2]
[389145176,1759590682063,-3059.2834119,0.00021072,2]
[389145177,1759590682072,-5103.0261571,0.00021092,2]
[389145178,1759590682082,-155.42,0.00021095,2]
[389145179,1759590682091,-155.0,0.00021095,2]
[389145180,1759590682101,-670.76156548,0.00021095,2]
[389145181,1759590682111,-2680.36321566,0.00021095,2]
[389145182,1759590682121,-605.07439557,0.00021095,2]
[389145183,1759590682131,-972.62486453,0.00021095,2]
[389145184,1759590682144,-3886.60895868,0.00021095,2]
[389145185,1759590682153,-562.65215801,0.00021095,2]
[389145187,1759590682171,-2250.60863204,0.00021095,2]
[389145188,1759590682184,-5058.80555267,0.00021095,2]
[389145190,1759590682194,-500.0,0.00021095,2]
[389145191,1759590682204,-192.17565635,0.00021095,2]
[389145192,1759590682214,-570.2,0.00021095,2]
[389145194,1759590682224,-500.0,0.00021095,2]
[389145195,1759590682233,-851.18,0.00021095,2]
[389145196,1759590682243,-500.0,0.00021095,2]
[389145198,1759590682253,-705.06,0.00021095,2]
[389145199,1759590682264,-151.0,0.00021095,2]
[389145201,1759590682274,-151.0,0.00021095,2]
[389145202,1759590682284,-151.0,0.00021095,2]
[389145203,1759590682294,-500.0,0.00021095,2]
[389145205,1759590682304,-151.0,0.00021095,2]
[389145206,1759590682314,-153.415777,0.00021095,2]
[389145207,1759590682324,-151.0,0.00021095,2]
[389145209,1759590682334,-500.0,0.00021095,2]
[389145210,1759590682343,-151.0,0.00021095,2]
[389145212,1759590682353,-500.0,0.00021095,2]
[389145213,1759590682363,-152.538068,0.00021095,2]
[389145214,1759590682373,-500.0,0.00021095,2]
[389145216,1759590682383,-1245.62,0.00021095,2]
[389145217,1759590682395,-483.56805913,0.00021095,2]
[389145219,1759590682406,-151.0,0.00021095,2]
[389145220,1759590682415,-151.0,0.00021095,2]
[389145221,1759590682426,-1777.82,0.00021095,2]
[389145223,1759590682436,-500.0,0.00021095,2]
[389145224,1759590682446,-151.0,0.00021095,2]
[389145225,1759590682457,-151.0,0.00021095,2]
[389145227,1759590682467,-151.0,0.00021095,2]
[389145228,1759590682476,-921.66,0.00021095,2]
[389145229,1759590682486,-460.9051973,0.00021095,2]
[389145231,1759590682496,-500.0,0.00021095,2]
[389145232,1759590682505,-151.0,0.00021095,2]
[389145233,1759590682516,-500.0,0.00021095,2]
[389145234,1759590682526,-151.0,0.00021095,2]
[389145235,1759590682537,-1196.39,0.00021095,2]
[389145236,1759590682547,-500.0,0.00021095,2]
[389145237,1759590682557,-500.0,0.00021095,2]
[389145238,1759590682567,-529.14,0.00021095,2]
[389145239,1759590682578,-534.32,0.00021095,2]
[389145240,1759590682588,-500.0,0.00021095,2]
[389145241,1759590682598,-151.0,0.00021095,2]
[389145242,1759590682607,-151.0,0.00021095,2]
[389145243,1759590682617,-151.0,0.00021095,2]
[389145244,1759590682627,-1227.79,0.00021095,2]
[389145245,1759590682636,-151.0,0.00021095,2]
[389145246,1759590682645,-151.0,0.00021095,2]
[389145247,1759590682656,-151.0,0.00021095,2]
[389145248,1759590682665,-151.0,0.00021095,2]
[389145249,1759590682674,-193.180076,0.00021095,2]
[389145250,1759590682685,-151.0,0.00021095,2]
[389145251,1759590682694,-500.0,0.00021095,2]
[389145252,1759590682704,-500.0,0.00021095,2]
[389145253,1759590682713,-1123.99,0.00021095,2]
[389145254,1759590682724,-513.6,0.00021095,2]
[389145255,1759590682734,-500.0,0.00021095,2]
[389145256,1759590682743,-500.0,0.00021095,2]
[389145257,1759590682753,-500.0,0.00021095,2]
[389145258,1759590682763,-871.48,0.00021095,2]
[389145259,1759590682773,-663.01,0.00021095,2]
[389145260,1759590682783,-500.0,0.00021095,2]
[389145261,1759590682794,-1603.11,0.00021095,2]
[389145262,1759590682804,-564.32,0.00021095,2]
[389145263,1759590682813,-500.0,0.00021095,2]
[389145264,1759590682823,-2830.57,0.00021095,2]
[389145265,1759590682833,-500.0,0.00021095,2]
[389145266,1759590682844,-500.0,0.00021095,2]
[389145267,1759590682853,-500.0,0.00021095,2]
[389145268,1759590682863,-500.0,0.00021095,2]
[389145269,1759590682872,-500.0,0.00021095,2]
[389145270,1759590682882,-500.0,0.00021095,2]
[389145271,1759590682892,-500.0,0.00021095,2]
[389145272,1759590682902,-500.0,0.00021095,2]
[389145273,1759590682911,-500.0,0.00021095,2]
[389145274,1759590682921,-1054.46,0.00021095,2]
[389145275,1759590682932,-1656.64,0.00021095,2]
[389145276,1759590682941,-151.0,0.00021095,2]
[389145277,1759590682951,-500.0,0.00021095,2]
[389145278,1759590682961,-500.0,0.00021095,2]
[389145279,1759590682971,-151.0,0.00021095,2]
[389145280,1759590682980,-151.0,0.00021095,2]
[389145281,1759590682990,-500.0,0.00021095,2]
[389145282,1759590683000,-500.0,0.00021095,2]
[389145283,1759590683192,-500.0,0.00021095,2]
[389145284,1759590683203,-537.94,0.00021095,2]
[389145285,1759590683213,-978.72,0.00021095,2]
[389145286,1759590683222,-500.0,0.00021095,2]
[389145287,1759590683233,-765.99,0.00021095,2]
[389145288,1759590683243,-500.0,0.00021095,2]
[389145289,1759590683253,-958.69,0.00021095,2]
[389145290,1759590683263,-1025.98,0.00021095,2]
[389145291,1759590683273,-562.14,0.00021095,2]
[389145292,1759590683282,-500.0,0.00021095,2]
[389145293,1759590683292,-389.73723122,0.00021095,2]
[389145294,1759590683302,-1558.94892486,0.00021095,2]
[389145295,1759590683312,-500.0,0.00021095,2]
[389145296,1759590683322,-3507.63508094,0.00021095,2]
[389145297,1759590683332,-533.74,0.00021095,2]
[389145298,1759590683343,-500.0,0.00021095,2]
[389145299,1759590683353,-709.18,0.00021095,2]
[389145300,1759590683363,-375.181838,0.00021095,2]
[389145301,1759590683373,-6229.55990375,0.00021095,2]
[389145302,1759590683383,-555.69,0.00021095,2]
[389145303,1759590683393,-375.181838,0.00021095,2]
[389145304,1759590683403,-585.77604444,0.00021095,2]
[389145305,1759590683413,-151.0,0.00021095,2]
[389145306,1759590683423,-500.0,0.00021095,2]
[389145307,1759590683433,-375.181838,0.00021095,2]
[389145308,1759590683443,-151.0,0.00021095,2]
[389145309,1759590683453,-375.18183,0.00021095,2]
[389145310,1759590683462,-508.88,0.00021095,2]
[389145311,1759590683472,-664.88,0.00021095,2]
[389145312,1759590683482,-500.0,0.00021095,2]
[389145313,1759590683491,-3239.32,0.00021095,2]
[389145314,1759590683502,-668.88,0.00021095,2]
[389145315,1759590683512,-561.44,0.00021095,2]
[389145316,1759590683522,-2075.26,0.00021095,2]
[389145317,1759590683532,-151.0,0.00021095,2]
[389145318,1759590683542,-500.0,0.00021095,2]
[389145319,1759590683551,-500.0,0.00021095,2]
[389145320,1759590683561,-500.0,0.00021095,2]
[389145321,1759590683572,-500.0,0.00021095,2]
[389145322,1759590683582,-1601.94,0.00021095,2]
[389145323,1759590683592,-500.0,0.00021095,2]
[389145324,1759590683602,-706.43,0.00021095,2]
[389145325,1759590683612,-500.0,0.00021095,2]
[389145326,1759590683623,-500.0,0.00021095,2]
[389145327,1759590683633,-529.06,0.00021095,2]
[389145328,1759590683642,-748.01,0.00021095,2]
[389145329,1759590683653,-500.0,0.00021095,2]
[389145330,1759590683663,-156.755195,0.00021095,2]
[389145331,1759590683673,-805.25,0.00021095,2]
[389145332,1759590683683,-877.35,0.00021095,2]
[389145333,1759590683693,-810.89,0.00021095,2]
[389145334,1759590683702,-840.23,0.00021095,2]
[389145335,1759590683712,-500.0,0.00021095,2]
[389145336,1759590683722,-500.0,0.00021095,2]
[389145337,1759590683731,-842.15,0.00021095,2]
[389145338,1759590683741,-2848.24,0.00021095,2]
[389145339,1759590683751,-966.97,0.00021095,2]
[389145340,1759590683760,-500.0,0.00021095,2]
[389145341,1759590683770,-1140.91,0.00021095,2]
[389145342,1759590683780,-500.0,0.00021095,2]
[389145343,1759590683789,-1360.8,0.00021095,2]
[389145344,1759590683799,-609.28,0.00021095,2]
[389145345,1759590683808,-500.0,0.00021095,2]
[389145346,1759590683818,-500.0,0.00021095,2]
[389145347,1759590683828,-500.0,0.00021095,2]
[389145348,1759590683838,-500.0,0.00021095,2]
[389145349,1759590683847,-500.0,0.00021095,2]
[389145350,1759590683857,-645.8,0.00021095,2]
[389145351,1759590683866,-500.0,0.00021095,2]
[389145352,1759590683877,-977.77,0.00021095,2]
[389145353,1759590683886,-958.93,0.00021095,2]
[389145354,1759590683896,-500.0,0.00021095,2]
[389145355,1759590683906,-500.0,0.00021095,2]
[389145356,1759590683916,-1323.11,0.00021095,2]
[389145357,1759590683925,-500.0,0.00021095,2]
[389145358,1759590683935,-299.82774392,0.00021095,2]
[389145359,1759590683944,-1198.11166472,0.00021095,2]
[389145360,1759590683954,-500.0,0.00021095,2]
[389145361,1759590683964,-500.0,0.00021095,2]
[389145362,1759590683974,-1856.22,0.00021095,2]
[389145363,1759590683983,-1749.05,0.00021095,2]
[389145364,1759590683993,-768.13,0.00021095,2]
[389145365,1759590684002,-500.0,0.00021095,2]
[389145366,1759590684012,-500.0,0.00021095,2]
[389145367,1759590684022,-500.0,0.00021095,2]
[389145368,1759590684031,-732.2,0.00021095,2]
[389145369,1759590684040,-1738.11,0.00021095,2]
[389145370,1759590684050,-373.70332433,0.00021095,2]
[389145371,1759590684061,-500.0,0.00021095,2]
[389145372,1759590684072,-3015.62,0.00021095,2]
[389145373,1759590684085,-1097.18,0.00021095,2]
[389145374,1759590684095,-1095.04,0.00021095,2]
[389145375,1759590684105,-500.0,0.00021095,2]
[389145376,1759590684115,-3353.07,0.00021095,2]
[389145377,1759590684125,-500.0,0.00021095,2]
[389145378,1759590684137,-500.0,0.00021095,2]
[389145379,1759590684148,-500.0,0.00021095,2]
[389145380,1759590684159,-500.0,0.00021095,2]
[389145381,1759590684168,-500.0,0.00021095,2]
[389145382,1759590684180,-979.87,0.00021095,2]
[389145383,1759590684190,-500.0,0.00021095,2]